Workbook

Sheet Source
B2: Table1 | J2: Table2
B3: Date | C3: Client | D3: Service | E3: Rev | J3: Client | K3: Service
B4: =DATE(2010,RANDBETWEEN(1,12),RANDBETWEEN(1,31)) -> 2010-05-15 | C4: =INDEX(Table2[Client],RANDBETWEEN(1,ROWS(Table2[]))) -> Turner | D4: =INDEX(Table2[Service],RANDBETWEEN(1,ROWS(Table2[]))) -> Kucec | E4: =RANDBETWEEN(10,280) -> 55 | J4: Perez | K4: Fadut
B5: =DATE(2010,RANDBETWEEN(1,12),RANDBETWEEN(1,31)) -> 2010-07-28 | C5: =INDEX(Table2[Client],RANDBETWEEN(1,ROWS(Table2[]))) -> Miller | D5: =INDEX(Table2[Service],RANDBETWEEN(1,ROWS(Table2[]))) -> Kapan | E5: =RANDBETWEEN(10,280) -> 74 | J5: Roberts | K5: Kapan
B6: 2010-08-11 | C6: =INDEX(Table2[Client],RANDBETWEEN(1,ROWS(Table2[]))) -> Phillips | D6: =INDEX(Table2[Service],RANDBETWEEN(1,ROWS(Table2[]))) -> Dokok | E6: 17 | J6: Turner | K6: Pikab
B7: 2010-10-04 | C7: =INDEX(Table2[Client],RANDBETWEEN(1,ROWS(Table2[]))) -> Turner | D7: =INDEX(Table2[Service],RANDBETWEEN(1,ROWS(Table2[]))) -> Veneg | E7: 254 | J7: Phillips | K7: Ludin
B8: 2010-01-26 | C8: =INDEX(Table2[Client],RANDBETWEEN(1,ROWS(Table2[]))) -> Parker | D8: =INDEX(Table2[Service],RANDBETWEEN(1,ROWS(Table2[]))) -> Veneg | E8: 119 | J8: Campbell | K8: Dokok
B9: 2010-11-28 | C9: =INDEX(Table2[Client],RANDBETWEEN(1,ROWS(Table2[]))) -> Perez | D9: =INDEX(Table2[Service],RANDBETWEEN(1,ROWS(Table2[]))) -> Pikab | E9: 182 | J9: Parker | K9: Veneg
B10: 2010-08-31 | C10: =INDEX(Table2[Client],RANDBETWEEN(1,ROWS(Table2[]))) -> Perez | D10: =INDEX(Table2[Service],RANDBETWEEN(1,ROWS(Table2[]))) -> Dokok | E10: 250 | J10: Miller | K10: Kucec
B11: 2010-12-20 | C11: =INDEX(Table2[Client],RANDBETWEEN(1,ROWS(Table2[]))) -> Miller | D11: =INDEX(Table2[Service],RANDBETWEEN(1,ROWS(Table2[]))) -> Kucec | E11: 207
B12: 2010-05-26 | C12: =INDEX(Table2[Client],RANDBETWEEN(1,ROWS(Table2[]))) -> Roberts | D12: =INDEX(Table2[Service],RANDBETWEEN(1,ROWS(Table2[]))) -> Kapan | E12: 45
B13: 2010-12-28 | C13: =INDEX(Table2[Client],RANDBETWEEN(1,ROWS(Table2[]))) -> Parker | D13: =INDEX(Table2[Service],RANDBETWEEN(1,ROWS(Table2[]))) -> Pikab | E13: 14
B14: 2010-07-24 | C14: =INDEX(Table2[Client],RANDBETWEEN(1,ROWS(Table2[]))) -> Miller | D14: =INDEX(Table2[Service],RANDBETWEEN(1,ROWS(Table2[]))) -> Fadut | E14: 172
B15: 2010-09-21 | C15: =INDEX(Table2[Client],RANDBETWEEN(1,ROWS(Table2[]))) -> Campbell | D15: =INDEX(Table2[Service],RANDBETWEEN(1,ROWS(Table2[]))) -> Dokok | E15: 175
B16: 2010-07-14 | C16: =INDEX(Table2[Client],RANDBETWEEN(1,ROWS(Table2[]))) -> Roberts | D16: =INDEX(Table2[Service],RANDBETWEEN(1,ROWS(Table2[]))) -> Ludin | E16: 71
B17: 2010-07-02 | C17: =INDEX(Table2[Client],RANDBETWEEN(1,ROWS(Table2[]))) -> Turner | D17: =INDEX(Table2[Service],RANDBETWEEN(1,ROWS(Table2[]))) -> Dokok | E17: 235
B18: 2010-04-06 | C18: =INDEX(Table2[Client],RANDBETWEEN(1,ROWS(Table2[]))) -> Roberts | D18: =INDEX(Table2[Service],RANDBETWEEN(1,ROWS(Table2[]))) -> Ludin | E18: 227
B19: 2010-02-16 | C19: =INDEX(Table2[Client],RANDBETWEEN(1,ROWS(Table2[]))) -> Parker | D19: =INDEX(Table2[Service],RANDBETWEEN(1,ROWS(Table2[]))) -> Kucec | E19: 216
B20: 2010-07-30 | C20: =INDEX(Table2[Client],RANDBETWEEN(1,ROWS(Table2[]))) -> Perez | D20: =INDEX(Table2[Service],RANDBETWEEN(1,ROWS(Table2[]))) -> Dokok | E20: 186
B21: 2010-02-01 | C21: =INDEX(Table2[Client],RANDBETWEEN(1,ROWS(Table2[]))) -> Parker | D21: =INDEX(Table2[Service],RANDBETWEEN(1,ROWS(Table2[]))) -> Dokok | E21: 110
B22: 2010-07-13 | C22: =INDEX(Table2[Client],RANDBETWEEN(1,ROWS(Table2[]))) -> Parker | D22: =INDEX(Table2[Service],RANDBETWEEN(1,ROWS(Table2[]))) -> Pikab | E22: 91
B23: 2010-11-25 | C23: =INDEX(Table2[Client],RANDBETWEEN(1,ROWS(Table2[]))) -> Roberts | D23: =INDEX(Table2[Service],RANDBETWEEN(1,ROWS(Table2[]))) -> Kapan | E23: 132
B24: 2010-08-20 | C24: =INDEX(Table2[Client],RANDBETWEEN(1,ROWS(Table2[]))) -> Turner | D24: =INDEX(Table2[Service],RANDBETWEEN(1,ROWS(Table2[]))) -> Kucec | E24: 136
B25: 2010-11-16 | C25: =INDEX(Table2[Client],RANDBETWEEN(1,ROWS(Table2[]))) -> Perez | D25: =INDEX(Table2[Service],RANDBETWEEN(1,ROWS(Table2[]))) -> Ludin | E25: 197
B26: 2010-11-04 | C26: =INDEX(Table2[Client],RANDBETWEEN(1,ROWS(Table2[]))) -> Campbell | D26: =INDEX(Table2[Service],RANDBETWEEN(1,ROWS(Table2[]))) -> Veneg | E26: 187
B27: 2010-09-19 | C27: =INDEX(Table2[Client],RANDBETWEEN(1,ROWS(Table2[]))) -> Miller | D27: =INDEX(Table2[Service],RANDBETWEEN(1,ROWS(Table2[]))) -> Kapan | E27: 210
B28: 2010-02-20 | C28: =INDEX(Table2[Client],RANDBETWEEN(1,ROWS(Table2[]))) -> Phillips | D28: =INDEX(Table2[Service],RANDBETWEEN(1,ROWS(Table2[]))) -> Fadut | E28: 258
B29: 2010-11-17 | C29: =INDEX(Table2[Client],RANDBETWEEN(1,ROWS(Table2[]))) -> Parker | D29: =INDEX(Table2[Service],RANDBETWEEN(1,ROWS(Table2[]))) -> Veneg | E29: 221
B30: 2010-09-21 | C30: =INDEX(Table2[Client],RANDBETWEEN(1,ROWS(Table2[]))) -> Parker | D30: =INDEX(Table2[Service],RANDBETWEEN(1,ROWS(Table2[]))) -> Veneg | E30: 200
B31: 2010-08-04 | C31: =INDEX(Table2[Client],RANDBETWEEN(1,ROWS(Table2[]))) -> Roberts | D31: =INDEX(Table2[Service],RANDBETWEEN(1,ROWS(Table2[]))) -> Pikab | E31: 123
B32: 2010-02-11 | C32: =INDEX(Table2[Client],RANDBETWEEN(1,ROWS(Table2[]))) -> Perez | D32: =INDEX(Table2[Service],RANDBETWEEN(1,ROWS(Table2[]))) -> Fadut | E32: 205
B33: 2010-01-02 | C33: =INDEX(Table2[Client],RANDBETWEEN(1,ROWS(Table2[]))) -> Phillips | D33: =INDEX(Table2[Service],RANDBETWEEN(1,ROWS(Table2[]))) -> Fadut | E33: 185
B34: 2010-01-09 | C34: =INDEX(Table2[Client],RANDBETWEEN(1,ROWS(Table2[]))) -> Phillips | D34: =INDEX(Table2[Service],RANDBETWEEN(1,ROWS(Table2[]))) -> Dokok | E34: 11
B35: 2010-02-11 | C35: =INDEX(Table2[Client],RANDBETWEEN(1,ROWS(Table2[]))) -> Campbell | D35: =INDEX(Table2[Service],RANDBETWEEN(1,ROWS(Table2[]))) -> Dokok | E35: 137
B36: 2010-02-27 | C36: =INDEX(Table2[Client],RANDBETWEEN(1,ROWS(Table2[]))) -> Roberts | D36: =INDEX(Table2[Service],RANDBETWEEN(1,ROWS(Table2[]))) -> Pikab | E36: 113
B37: 2010-10-12 | C37: =INDEX(Table2[Client],RANDBETWEEN(1,ROWS(Table2[]))) -> Campbell | D37: =INDEX(Table2[Service],RANDBETWEEN(1,ROWS(Table2[]))) -> Ludin | E37: 181
B38: 2010-02-16 | C38: =INDEX(Table2[Client],RANDBETWEEN(1,ROWS(Table2[]))) -> Miller | D38: =INDEX(Table2[Service],RANDBETWEEN(1,ROWS(Table2[]))) -> Kucec | E38: 37
B39: 2010-01-13 | C39: =INDEX(Table2[Client],RANDBETWEEN(1,ROWS(Table2[]))) -> Turner | D39: =INDEX(Table2[Service],RANDBETWEEN(1,ROWS(Table2[]))) -> Ludin | E39: 254
B40: 2010-04-13 | C40: =INDEX(Table2[Client],RANDBETWEEN(1,ROWS(Table2[]))) -> Roberts | D40: =INDEX(Table2[Service],RANDBETWEEN(1,ROWS(Table2[]))) -> Pikab | E40: 225
B41: 2010-10-05 | C41: =INDEX(Table2[Client],RANDBETWEEN(1,ROWS(Table2[]))) -> Perez | D41: =INDEX(Table2[Service],RANDBETWEEN(1,ROWS(Table2[]))) -> Kapan | E41: 235
B42: 2010-05-01 | C42: =INDEX(Table2[Client],RANDBETWEEN(1,ROWS(Table2[]))) -> Parker | D42: =INDEX(Table2[Service],RANDBETWEEN(1,ROWS(Table2[]))) -> Dokok | E42: 234
B43: 2010-09-30 | C43: =INDEX(Table2[Client],RANDBETWEEN(1,ROWS(Table2[]))) -> Campbell | D43: =INDEX(Table2[Service],RANDBETWEEN(1,ROWS(Table2[]))) -> Fadut | E43: 265
B44: 2010-07-20 | C44: =INDEX(Table2[Client],RANDBETWEEN(1,ROWS(Table2[]))) -> Parker | D44: =INDEX(Table2[Service],RANDBETWEEN(1,ROWS(Table2[]))) -> Dokok | E44: 145
B45: 2010-09-26 | C45: =INDEX(Table2[Client],RANDBETWEEN(1,ROWS(Table2[]))) -> Turner | D45: =INDEX(Table2[Service],RANDBETWEEN(1,ROWS(Table2[]))) -> Kucec | E45: 59
B46: 2010-06-24 | C46: =INDEX(Table2[Client],RANDBETWEEN(1,ROWS(Table2[]))) -> Campbell | D46: =INDEX(Table2[Service],RANDBETWEEN(1,ROWS(Table2[]))) -> Ludin | E46: 126
B47: 2010-04-04 | C47: =INDEX(Table2[Client],RANDBETWEEN(1,ROWS(Table2[]))) -> Campbell | D47: =INDEX(Table2[Service],RANDBETWEEN(1,ROWS(Table2[]))) -> Dokok | E47: 16
B48: 2010-01-08 | C48: =INDEX(Table2[Client],RANDBETWEEN(1,ROWS(Table2[]))) -> Campbell | D48: =INDEX(Table2[Service],RANDBETWEEN(1,ROWS(Table2[]))) -> Pikab | E48: 23
B49: 2010-12-13 | C49: =INDEX(Table2[Client],RANDBETWEEN(1,ROWS(Table2[]))) -> Miller | D49: =INDEX(Table2[Service],RANDBETWEEN(1,ROWS(Table2[]))) -> Kucec | E49: 114
B50: 2010-07-02 | C50: =INDEX(Table2[Client],RANDBETWEEN(1,ROWS(Table2[]))) -> Parker | D50: =INDEX(Table2[Service],RANDBETWEEN(1,ROWS(Table2[]))) -> Fadut | E50: 19
B51: 2010-02-17 | C51: =INDEX(Table2[Client],RANDBETWEEN(1,ROWS(Table2[]))) -> Turner | D51: =INDEX(Table2[Service],RANDBETWEEN(1,ROWS(Table2[]))) -> Fadut | E51: 77
B52: 2010-12-18 | C52: =INDEX(Table2[Client],RANDBETWEEN(1,ROWS(Table2[]))) -> Campbell | D52: =INDEX(Table2[Service],RANDBETWEEN(1,ROWS(Table2[]))) -> Ludin | E52: 52
B53: 2010-12-05 | C53: =INDEX(Table2[Client],RANDBETWEEN(1,ROWS(Table2[]))) -> Perez | D53: =INDEX(Table2[Service],RANDBETWEEN(1,ROWS(Table2[]))) -> Kapan | E53: 86
B54: 2010-06-16 | C54: =INDEX(Table2[Client],RANDBETWEEN(1,ROWS(Table2[]))) -> Miller | D54: =INDEX(Table2[Service],RANDBETWEEN(1,ROWS(Table2[]))) -> Kucec | E54: 32
B55: 2010-05-21 | C55: =INDEX(Table2[Client],RANDBETWEEN(1,ROWS(Table2[]))) -> Phillips | D55: =INDEX(Table2[Service],RANDBETWEEN(1,ROWS(Table2[]))) -> Kucec | E55: 183
B56: 2010-03-09 | C56: =INDEX(Table2[Client],RANDBETWEEN(1,ROWS(Table2[]))) -> Roberts | D56: =INDEX(Table2[Service],RANDBETWEEN(1,ROWS(Table2[]))) -> Pikab | E56: 251
B57: 2010-06-19 | C57: =INDEX(Table2[Client],RANDBETWEEN(1,ROWS(Table2[]))) -> Turner | D57: =INDEX(Table2[Service],RANDBETWEEN(1,ROWS(Table2[]))) -> Kapan | E57: 274
B58: 2010-03-20 | C58: =INDEX(Table2[Client],RANDBETWEEN(1,ROWS(Table2[]))) -> Turner | D58: =INDEX(Table2[Service],RANDBETWEEN(1,ROWS(Table2[]))) -> Ludin | E58: 185
B59: 2010-01-09 | C59: =INDEX(Table2[Client],RANDBETWEEN(1,ROWS(Table2[]))) -> Campbell | D59: =INDEX(Table2[Service],RANDBETWEEN(1,ROWS(Table2[]))) -> Pikab | E59: 246
B60: 2010-09-09 | C60: =INDEX(Table2[Client],RANDBETWEEN(1,ROWS(Table2[]))) -> Phillips | D60: =INDEX(Table2[Service],RANDBETWEEN(1,ROWS(Table2[]))) -> Ludin | E60: 131
B61: 2010-08-06 | C61: =INDEX(Table2[Client],RANDBETWEEN(1,ROWS(Table2[]))) -> Parker | D61: =INDEX(Table2[Service],RANDBETWEEN(1,ROWS(Table2[]))) -> Fadut | E61: 193
B62: 2010-09-03 | C62: =INDEX(Table2[Client],RANDBETWEEN(1,ROWS(Table2[]))) -> Campbell | D62: =INDEX(Table2[Service],RANDBETWEEN(1,ROWS(Table2[]))) -> Ludin | E62: 43
B63: 2010-07-22 | C63: =INDEX(Table2[Client],RANDBETWEEN(1,ROWS(Table2[]))) -> Perez | D63: =INDEX(Table2[Service],RANDBETWEEN(1,ROWS(Table2[]))) -> Ludin | E63: 62
B64: 2010-11-22 | C64: =INDEX(Table2[Client],RANDBETWEEN(1,ROWS(Table2[]))) -> Turner | D64: =INDEX(Table2[Service],RANDBETWEEN(1,ROWS(Table2[]))) -> Dokok | E64: 273
B65: 2010-11-07 | C65: =INDEX(Table2[Client],RANDBETWEEN(1,ROWS(Table2[]))) -> Roberts | D65: =INDEX(Table2[Service],RANDBETWEEN(1,ROWS(Table2[]))) -> Kucec | E65: 116
B66: 2010-03-21 | C66: =INDEX(Table2[Client],RANDBETWEEN(1,ROWS(Table2[]))) -> Roberts | D66: =INDEX(Table2[Service],RANDBETWEEN(1,ROWS(Table2[]))) -> Kucec | E66: 161
B67: 2010-03-27 | C67: =INDEX(Table2[Client],RANDBETWEEN(1,ROWS(Table2[]))) -> Campbell | D67: =INDEX(Table2[Service],RANDBETWEEN(1,ROWS(Table2[]))) -> Ludin | E67: 185
B68: 2010-10-30 | C68: =INDEX(Table2[Client],RANDBETWEEN(1,ROWS(Table2[]))) -> Perez | D68: =INDEX(Table2[Service],RANDBETWEEN(1,ROWS(Table2[]))) -> Kucec | E68: 118
B69: =DATE(2010,RANDBETWEEN(1,12),RANDBETWEEN(1,31)) -> 2010-12-31 | C69: =INDEX(Table2[Client],RANDBETWEEN(1,ROWS(Table2[]))) -> Phillips | D69: =INDEX(Table2[Service],RANDBETWEEN(1,ROWS(Table2[]))) -> Fadut | E69: =RANDBETWEEN(10,280) -> 174
B70: 2010-10-26 | C70: =INDEX(Table2[Client],RANDBETWEEN(1,ROWS(Table2[]))) -> Phillips | D70: =INDEX(Table2[Service],RANDBETWEEN(1,ROWS(Table2[]))) -> Pikab | E70: 248
B71: 2010-05-17 | C71: =INDEX(Table2[Client],RANDBETWEEN(1,ROWS(Table2[]))) -> Parker | D71: =INDEX(Table2[Service],RANDBETWEEN(1,ROWS(Table2[]))) -> Fadut | E71: 65
B72: 2010-10-09 | C72: =INDEX(Table2[Client],RANDBETWEEN(1,ROWS(Table2[]))) -> Roberts | D72: =INDEX(Table2[Service],RANDBETWEEN(1,ROWS(Table2[]))) -> Dokok | E72: 186
B73: 2010-09-06 | C73: =INDEX(Table2[Client],RANDBETWEEN(1,ROWS(Table2[]))) -> Parker | D73: =INDEX(Table2[Service],RANDBETWEEN(1,ROWS(Table2[]))) -> Kucec | E73: 205
B74: 2010-01-06 | C74: =INDEX(Table2[Client],RANDBETWEEN(1,ROWS(Table2[]))) -> Parker | D74: =INDEX(Table2[Service],RANDBETWEEN(1,ROWS(Table2[]))) -> Dokok | E74: 76
B75: 2010-02-20 | C75: =INDEX(Table2[Client],RANDBETWEEN(1,ROWS(Table2[]))) -> Turner | D75: =INDEX(Table2[Service],RANDBETWEEN(1,ROWS(Table2[]))) -> Kucec | E75: 188
B76: 2010-09-19 | C76: =INDEX(Table2[Client],RANDBETWEEN(1,ROWS(Table2[]))) -> Perez | D76: =INDEX(Table2[Service],RANDBETWEEN(1,ROWS(Table2[]))) -> Dokok | E76: 42
B77: 2010-01-05 | C77: =INDEX(Table2[Client],RANDBETWEEN(1,ROWS(Table2[]))) -> Perez | D77: =INDEX(Table2[Service],RANDBETWEEN(1,ROWS(Table2[]))) -> Kucec | E77: 189
B78: 2010-12-20 | C78: =INDEX(Table2[Client],RANDBETWEEN(1,ROWS(Table2[]))) -> Miller | D78: =INDEX(Table2[Service],RANDBETWEEN(1,ROWS(Table2[]))) -> Kucec | E78: 255
B79: 2010-07-31 | C79: =INDEX(Table2[Client],RANDBETWEEN(1,ROWS(Table2[]))) -> Turner | D79: =INDEX(Table2[Service],RANDBETWEEN(1,ROWS(Table2[]))) -> Veneg | E79: 47
B80: 2010-04-18 | C80: =INDEX(Table2[Client],RANDBETWEEN(1,ROWS(Table2[]))) -> Parker | D80: =INDEX(Table2[Service],RANDBETWEEN(1,ROWS(Table2[]))) -> Veneg | E80: 56
B81: 2010-09-30 | C81: =INDEX(Table2[Client],RANDBETWEEN(1,ROWS(Table2[]))) -> Phillips | D81: =INDEX(Table2[Service],RANDBETWEEN(1,ROWS(Table2[]))) -> Kucec | E81: 22
B82: 2010-08-18 | C82: =INDEX(Table2[Client],RANDBETWEEN(1,ROWS(Table2[]))) -> Turner | D82: =INDEX(Table2[Service],RANDBETWEEN(1,ROWS(Table2[]))) -> Kucec | E82: 133
B83: 2010-08-27 | C83: =INDEX(Table2[Client],RANDBETWEEN(1,ROWS(Table2[]))) -> Turner | D83: =INDEX(Table2[Service],RANDBETWEEN(1,ROWS(Table2[]))) -> Fadut | E83: 244
B84: 2010-09-16 | C84: =INDEX(Table2[Client],RANDBETWEEN(1,ROWS(Table2[]))) -> Turner | D84: =INDEX(Table2[Service],RANDBETWEEN(1,ROWS(Table2[]))) -> Veneg | E84: 277
B85: 2010-09-14 | C85: =INDEX(Table2[Client],RANDBETWEEN(1,ROWS(Table2[]))) -> Perez | D85: =INDEX(Table2[Service],RANDBETWEEN(1,ROWS(Table2[]))) -> Kapan | E85: 265
B86: 2010-09-16 | C86: =INDEX(Table2[Client],RANDBETWEEN(1,ROWS(Table2[]))) -> Perez | D86: =INDEX(Table2[Service],RANDBETWEEN(1,ROWS(Table2[]))) -> Veneg | E86: 101
B87: 2010-01-18 | C87: =INDEX(Table2[Client],RANDBETWEEN(1,ROWS(Table2[]))) -> Campbell | D87: =INDEX(Table2[Service],RANDBETWEEN(1,ROWS(Table2[]))) -> Pikab | E87: 231
B88: 2010-06-13 | C88: =INDEX(Table2[Client],RANDBETWEEN(1,ROWS(Table2[]))) -> Parker | D88: =INDEX(Table2[Service],RANDBETWEEN(1,ROWS(Table2[]))) -> Ludin | E88: 48
B89: 2010-05-31 | C89: =INDEX(Table2[Client],RANDBETWEEN(1,ROWS(Table2[]))) -> Perez | D89: =INDEX(Table2[Service],RANDBETWEEN(1,ROWS(Table2[]))) -> Kucec | E89: 48
B90: 2010-06-11 | C90: =INDEX(Table2[Client],RANDBETWEEN(1,ROWS(Table2[]))) -> Parker | D90: =INDEX(Table2[Service],RANDBETWEEN(1,ROWS(Table2[]))) -> Ludin | E90: 209
B91: 2010-06-29 | C91: =INDEX(Table2[Client],RANDBETWEEN(1,ROWS(Table2[]))) -> Perez | D91: =INDEX(Table2[Service],RANDBETWEEN(1,ROWS(Table2[]))) -> Kucec | E91: 77
B92: 2010-09-14 | C92: =INDEX(Table2[Client],RANDBETWEEN(1,ROWS(Table2[]))) -> Miller | D92: =INDEX(Table2[Service],RANDBETWEEN(1,ROWS(Table2[]))) -> Veneg | E92: 70
B93: 2010-11-01 | C93: =INDEX(Table2[Client],RANDBETWEEN(1,ROWS(Table2[]))) -> Roberts | D93: =INDEX(Table2[Service],RANDBETWEEN(1,ROWS(Table2[]))) -> Ludin | E93: 140
B94: 2010-08-04 | C94: =INDEX(Table2[Client],RANDBETWEEN(1,ROWS(Table2[]))) -> Phillips | D94: =INDEX(Table2[Service],RANDBETWEEN(1,ROWS(Table2[]))) -> Pikab | E94: 236
B95: 2010-07-06 | C95: =INDEX(Table2[Client],RANDBETWEEN(1,ROWS(Table2[]))) -> Roberts | D95: =INDEX(Table2[Service],RANDBETWEEN(1,ROWS(Table2[]))) -> Fadut | E95: 54
B96: 2010-01-20 | C96: =INDEX(Table2[Client],RANDBETWEEN(1,ROWS(Table2[]))) -> Campbell | D96: =INDEX(Table2[Service],RANDBETWEEN(1,ROWS(Table2[]))) -> Ludin | E96: 195
B97: 2010-08-11 | C97: =INDEX(Table2[Client],RANDBETWEEN(1,ROWS(Table2[]))) -> Roberts | D97: =INDEX(Table2[Service],RANDBETWEEN(1,ROWS(Table2[]))) -> Kucec | E97: 83
B98: 2010-12-13 | C98: =INDEX(Table2[Client],RANDBETWEEN(1,ROWS(Table2[]))) -> Perez | D98: =INDEX(Table2[Service],RANDBETWEEN(1,ROWS(Table2[]))) -> Pikab | E98: 117
B99: 2010-04-23 | C99: =INDEX(Table2[Client],RANDBETWEEN(1,ROWS(Table2[]))) -> Turner | D99: =INDEX(Table2[Service],RANDBETWEEN(1,ROWS(Table2[]))) -> Pikab | E99: 32
B100: 2010-09-26 | C100: =INDEX(Table2[Client],RANDBETWEEN(1,ROWS(Table2[]))) -> Perez | D100: =INDEX(Table2[Service],RANDBETWEEN(1,ROWS(Table2[]))) -> Pikab | E100: 12
B101: 2010-11-11 | C101: =INDEX(Table2[Client],RANDBETWEEN(1,ROWS(Table2[]))) -> Campbell | D101: =INDEX(Table2[Service],RANDBETWEEN(1,ROWS(Table2[]))) -> Kucec | E101: 211
B102: 2010-07-01 | C102: =INDEX(Table2[Client],RANDBETWEEN(1,ROWS(Table2[]))) -> Campbell | D102: =INDEX(Table2[Service],RANDBETWEEN(1,ROWS(Table2[]))) -> Fadut | E102: 231
B103: 2010-05-16 | C103: =INDEX(Table2[Client],RANDBETWEEN(1,ROWS(Table2[]))) -> Roberts | D103: =INDEX(Table2[Service],RANDBETWEEN(1,ROWS(Table2[]))) -> Dokok | E103: 14
B104: 2010-03-17 | C104: =INDEX(Table2[Client],RANDBETWEEN(1,ROWS(Table2[]))) -> Perez | D104: =INDEX(Table2[Service],RANDBETWEEN(1,ROWS(Table2[]))) -> Ludin | E104: 191
B105: 2010-11-19 | C105: =INDEX(Table2[Client],RANDBETWEEN(1,ROWS(Table2[]))) -> Parker | D105: =INDEX(Table2[Service],RANDBETWEEN(1,ROWS(Table2[]))) -> Kucec | E105: 227
B106: 2010-03-20 | C106: =INDEX(Table2[Client],RANDBETWEEN(1,ROWS(Table2[]))) -> Perez | D106: =INDEX(Table2[Service],RANDBETWEEN(1,ROWS(Table2[]))) -> Kapan | E106: 70
B107: 2010-01-20 | C107: =INDEX(Table2[Client],RANDBETWEEN(1,ROWS(Table2[]))) -> Campbell | D107: =INDEX(Table2[Service],RANDBETWEEN(1,ROWS(Table2[]))) -> Kucec | E107: 19
B108: 2010-05-27 | C108: =INDEX(Table2[Client],RANDBETWEEN(1,ROWS(Table2[]))) -> Campbell | D108: =INDEX(Table2[Service],RANDBETWEEN(1,ROWS(Table2[]))) -> Fadut | E108: 43
B109: 2010-11-20 | C109: =INDEX(Table2[Client],RANDBETWEEN(1,ROWS(Table2[]))) -> Roberts | D109: =INDEX(Table2[Service],RANDBETWEEN(1,ROWS(Table2[]))) -> Kucec | E109: 152
B110: 2010-08-28 | C110: =INDEX(Table2[Client],RANDBETWEEN(1,ROWS(Table2[]))) -> Perez | D110: =INDEX(Table2[Service],RANDBETWEEN(1,ROWS(Table2[]))) -> Fadut | E110: 182
B111: 2010-03-06 | C111: =INDEX(Table2[Client],RANDBETWEEN(1,ROWS(Table2[]))) -> Phillips | D111: =INDEX(Table2[Service],RANDBETWEEN(1,ROWS(Table2[]))) -> Veneg | E111: 74
B112: 2010-03-20 | C112: =INDEX(Table2[Client],RANDBETWEEN(1,ROWS(Table2[]))) -> Roberts | D112: =INDEX(Table2[Service],RANDBETWEEN(1,ROWS(Table2[]))) -> Fadut | E112: 75
B113: 2010-05-12 | C113: =INDEX(Table2[Client],RANDBETWEEN(1,ROWS(Table2[]))) -> Miller | D113: =INDEX(Table2[Service],RANDBETWEEN(1,ROWS(Table2[]))) -> Ludin | E113: 247
B114: 2010-12-21 | C114: =INDEX(Table2[Client],RANDBETWEEN(1,ROWS(Table2[]))) -> Phillips | D114: =INDEX(Table2[Service],RANDBETWEEN(1,ROWS(Table2[]))) -> Ludin | E114: 205
B115: 2010-01-05 | C115: =INDEX(Table2[Client],RANDBETWEEN(1,ROWS(Table2[]))) -> Miller | D115: =INDEX(Table2[Service],RANDBETWEEN(1,ROWS(Table2[]))) -> Dokok | E115: 69
B116: 2010-09-13 | C116: =INDEX(Table2[Client],RANDBETWEEN(1,ROWS(Table2[]))) -> Parker | D116: =INDEX(Table2[Service],RANDBETWEEN(1,ROWS(Table2[]))) -> Fadut | E116: 138
B117: 2010-01-17 | C117: =INDEX(Table2[Client],RANDBETWEEN(1,ROWS(Table2[]))) -> Turner | D117: =INDEX(Table2[Service],RANDBETWEEN(1,ROWS(Table2[]))) -> Veneg | E117: 225
B118: 2010-08-07 | C118: =INDEX(Table2[Client],RANDBETWEEN(1,ROWS(Table2[]))) -> Perez | D118: =INDEX(Table2[Service],RANDBETWEEN(1,ROWS(Table2[]))) -> Pikab | E118: 167
B119: 2010-06-24 | C119: =INDEX(Table2[Client],RANDBETWEEN(1,ROWS(Table2[]))) -> Roberts | D119: =INDEX(Table2[Service],RANDBETWEEN(1,ROWS(Table2[]))) -> Kucec | E119: 13
B120: 2010-08-10 | C120: =INDEX(Table2[Client],RANDBETWEEN(1,ROWS(Table2[]))) -> Turner | D120: =INDEX(Table2[Service],RANDBETWEEN(1,ROWS(Table2[]))) -> Pikab | E120: 25
B121: 2010-12-21 | C121: =INDEX(Table2[Client],RANDBETWEEN(1,ROWS(Table2[]))) -> Perez | D121: =INDEX(Table2[Service],RANDBETWEEN(1,ROWS(Table2[]))) -> Kapan | E121: 268
B122: 2010-12-29 | C122: =INDEX(Table2[Client],RANDBETWEEN(1,ROWS(Table2[]))) -> Perez | D122: =INDEX(Table2[Service],RANDBETWEEN(1,ROWS(Table2[]))) -> Veneg | E122: 255
B123: 2010-08-16 | C123: =INDEX(Table2[Client],RANDBETWEEN(1,ROWS(Table2[]))) -> Miller | D123: =INDEX(Table2[Service],RANDBETWEEN(1,ROWS(Table2[]))) -> Pikab | E123: 58
B124: 2010-10-27 | C124: =INDEX(Table2[Client],RANDBETWEEN(1,ROWS(Table2[]))) -> Turner | D124: =INDEX(Table2[Service],RANDBETWEEN(1,ROWS(Table2[]))) -> Dokok | E124: 119
B125: 2010-04-13 | C125: =INDEX(Table2[Client],RANDBETWEEN(1,ROWS(Table2[]))) -> Phillips | D125: =INDEX(Table2[Service],RANDBETWEEN(1,ROWS(Table2[]))) -> Kapan | E125: 104
B126: 2010-06-20 | C126: =INDEX(Table2[Client],RANDBETWEEN(1,ROWS(Table2[]))) -> Turner | D126: =INDEX(Table2[Service],RANDBETWEEN(1,ROWS(Table2[]))) -> Pikab | E126: 221
B127: 2010-10-18 | C127: =INDEX(Table2[Client],RANDBETWEEN(1,ROWS(Table2[]))) -> Perez | D127: =INDEX(Table2[Service],RANDBETWEEN(1,ROWS(Table2[]))) -> Veneg | E127: 94
B128: 2010-09-26 | C128: =INDEX(Table2[Client],RANDBETWEEN(1,ROWS(Table2[]))) -> Perez | D128: =INDEX(Table2[Service],RANDBETWEEN(1,ROWS(Table2[]))) -> Pikab | E128: 260
B129: 2010-01-31 | C129: =INDEX(Table2[Client],RANDBETWEEN(1,ROWS(Table2[]))) -> Roberts | D129: =INDEX(Table2[Service],RANDBETWEEN(1,ROWS(Table2[]))) -> Kucec | E129: 274
B130: 2010-04-20 | C130: =INDEX(Table2[Client],RANDBETWEEN(1,ROWS(Table2[]))) -> Perez | D130: =INDEX(Table2[Service],RANDBETWEEN(1,ROWS(Table2[]))) -> Ludin | E130: 191
B131: 2010-08-11 | C131: =INDEX(Table2[Client],RANDBETWEEN(1,ROWS(Table2[]))) -> Perez | D131: =INDEX(Table2[Service],RANDBETWEEN(1,ROWS(Table2[]))) -> Dokok | E131: 26
B132: 2010-08-08 | C132: =INDEX(Table2[Client],RANDBETWEEN(1,ROWS(Table2[]))) -> Phillips | D132: =INDEX(Table2[Service],RANDBETWEEN(1,ROWS(Table2[]))) -> Ludin | E132: 29
B133: =DATE(2010,RANDBETWEEN(1,12),RANDBETWEEN(1,31)) -> 2010-08-02 | C133: =INDEX(Table2[Client],RANDBETWEEN(1,ROWS(Table2[]))) -> Parker | D133: =INDEX(Table2[Service],RANDBETWEEN(1,ROWS(Table2[]))) -> Pikab | E133: =RANDBETWEEN(10,280) -> 93
B134: 2010-01-22 | C134: =INDEX(Table2[Client],RANDBETWEEN(1,ROWS(Table2[]))) -> Campbell | D134: =INDEX(Table2[Service],RANDBETWEEN(1,ROWS(Table2[]))) -> Veneg | E134: 203
B135: 2010-03-16 | C135: =INDEX(Table2[Client],RANDBETWEEN(1,ROWS(Table2[]))) -> Perez | D135: =INDEX(Table2[Service],RANDBETWEEN(1,ROWS(Table2[]))) -> Fadut | E135: 26
B136: 2010-05-13 | C136: =INDEX(Table2[Client],RANDBETWEEN(1,ROWS(Table2[]))) -> Miller | D136: =INDEX(Table2[Service],RANDBETWEEN(1,ROWS(Table2[]))) -> Veneg | E136: 267
B137: 2010-10-12 | C137: =INDEX(Table2[Client],RANDBETWEEN(1,ROWS(Table2[]))) -> Phillips | D137: =INDEX(Table2[Service],RANDBETWEEN(1,ROWS(Table2[]))) -> Pikab | E137: 200
B138: 2010-08-20 | C138: =INDEX(Table2[Client],RANDBETWEEN(1,ROWS(Table2[]))) -> Miller | D138: =INDEX(Table2[Service],RANDBETWEEN(1,ROWS(Table2[]))) -> Ludin | E138: 231
B139: 2010-03-07 | C139: =INDEX(Table2[Client],RANDBETWEEN(1,ROWS(Table2[]))) -> Campbell | D139: =INDEX(Table2[Service],RANDBETWEEN(1,ROWS(Table2[]))) -> Kucec | E139: 19
B140: 2010-02-17 | C140: =INDEX(Table2[Client],RANDBETWEEN(1,ROWS(Table2[]))) -> Perez | D140: =INDEX(Table2[Service],RANDBETWEEN(1,ROWS(Table2[]))) -> Veneg | E140: 81
B141: 2010-08-23 | C141: =INDEX(Table2[Client],RANDBETWEEN(1,ROWS(Table2[]))) -> Phillips | D141: =INDEX(Table2[Service],RANDBETWEEN(1,ROWS(Table2[]))) -> Kucec | E141: 120
B142: 2010-04-06 | C142: =INDEX(Table2[Client],RANDBETWEEN(1,ROWS(Table2[]))) -> Turner | D142: =INDEX(Table2[Service],RANDBETWEEN(1,ROWS(Table2[]))) -> Kucec | E142: 133
B143: 2010-02-03 | C143: =INDEX(Table2[Client],RANDBETWEEN(1,ROWS(Table2[]))) -> Campbell | D143: =INDEX(Table2[Service],RANDBETWEEN(1,ROWS(Table2[]))) -> Fadut | E143: 257
B144: 2010-10-07 | C144: =INDEX(Table2[Client],RANDBETWEEN(1,ROWS(Table2[]))) -> Phillips | D144: =INDEX(Table2[Service],RANDBETWEEN(1,ROWS(Table2[]))) -> Dokok | E144: 165
B145: 2010-01-28 | C145: =INDEX(Table2[Client],RANDBETWEEN(1,ROWS(Table2[]))) -> Campbell | D145: =INDEX(Table2[Service],RANDBETWEEN(1,ROWS(Table2[]))) -> Dokok | E145: 205
B146: 2010-07-17 | C146: =INDEX(Table2[Client],RANDBETWEEN(1,ROWS(Table2[]))) -> Campbell | D146: =INDEX(Table2[Service],RANDBETWEEN(1,ROWS(Table2[]))) -> Kapan | E146: 36
B147: 2010-12-18 | C147: =INDEX(Table2[Client],RANDBETWEEN(1,ROWS(Table2[]))) -> Turner | D147: =INDEX(Table2[Service],RANDBETWEEN(1,ROWS(Table2[]))) -> Ludin | E147: 263
B148: 2010-11-14 | C148: =INDEX(Table2[Client],RANDBETWEEN(1,ROWS(Table2[]))) -> Phillips | D148: =INDEX(Table2[Service],RANDBETWEEN(1,ROWS(Table2[]))) -> Fadut | E148: 95
B149: 2010-11-02 | C149: =INDEX(Table2[Client],RANDBETWEEN(1,ROWS(Table2[]))) -> Turner | D149: =INDEX(Table2[Service],RANDBETWEEN(1,ROWS(Table2[]))) -> Veneg | E149: 22
B150: 2010-03-03 | C150: =INDEX(Table2[Client],RANDBETWEEN(1,ROWS(Table2[]))) -> Campbell | D150: =INDEX(Table2[Service],RANDBETWEEN(1,ROWS(Table2[]))) -> Dokok | E150: 27
B151: 2010-08-09 | C151: =INDEX(Table2[Client],RANDBETWEEN(1,ROWS(Table2[]))) -> Turner | D151: =INDEX(Table2[Service],RANDBETWEEN(1,ROWS(Table2[]))) -> Ludin | E151: 111
B152: 2010-07-10 | C152: =INDEX(Table2[Client],RANDBETWEEN(1,ROWS(Table2[]))) -> Roberts | D152: =INDEX(Table2[Service],RANDBETWEEN(1,ROWS(Table2[]))) -> Fadut | E152: 14
B153: 2010-01-31 | C153: =INDEX(Table2[Client],RANDBETWEEN(1,ROWS(Table2[]))) -> Perez | D153: =INDEX(Table2[Service],RANDBETWEEN(1,ROWS(Table2[]))) -> Kapan | E153: 184
B154: 2010-11-16 | C154: =INDEX(Table2[Client],RANDBETWEEN(1,ROWS(Table2[]))) -> Perez | D154: =INDEX(Table2[Service],RANDBETWEEN(1,ROWS(Table2[]))) -> Dokok | E154: 145
B155: 2010-08-16 | C155: =INDEX(Table2[Client],RANDBETWEEN(1,ROWS(Table2[]))) -> Parker | D155: =INDEX(Table2[Service],RANDBETWEEN(1,ROWS(Table2[]))) -> Fadut | E155: 69
B156: 2010-05-18 | C156: =INDEX(Table2[Client],RANDBETWEEN(1,ROWS(Table2[]))) -> Turner | D156: =INDEX(Table2[Service],RANDBETWEEN(1,ROWS(Table2[]))) -> Ludin | E156: 227
B157: 2010-03-17 | C157: =INDEX(Table2[Client],RANDBETWEEN(1,ROWS(Table2[]))) -> Roberts | D157: =INDEX(Table2[Service],RANDBETWEEN(1,ROWS(Table2[]))) -> Pikab | E157: 159
B158: 2010-10-25 | C158: =INDEX(Table2[Client],RANDBETWEEN(1,ROWS(Table2[]))) -> Campbell | D158: =INDEX(Table2[Service],RANDBETWEEN(1,ROWS(Table2[]))) -> Pikab | E158: 121
B159: 2010-01-11 | C159: =INDEX(Table2[Client],RANDBETWEEN(1,ROWS(Table2[]))) -> Phillips | D159: =INDEX(Table2[Service],RANDBETWEEN(1,ROWS(Table2[]))) -> Ludin | E159: 165
B160: 2010-03-27 | C160: =INDEX(Table2[Client],RANDBETWEEN(1,ROWS(Table2[]))) -> Campbell | D160: =INDEX(Table2[Service],RANDBETWEEN(1,ROWS(Table2[]))) -> Dokok | E160: 84
B161: 2010-07-15 | C161: =INDEX(Table2[Client],RANDBETWEEN(1,ROWS(Table2[]))) -> Perez | D161: =INDEX(Table2[Service],RANDBETWEEN(1,ROWS(Table2[]))) -> Fadut | E161: 207
B162: 2010-08-08 | C162: =INDEX(Table2[Client],RANDBETWEEN(1,ROWS(Table2[]))) -> Phillips | D162: =INDEX(Table2[Service],RANDBETWEEN(1,ROWS(Table2[]))) -> Dokok | E162: 274
B163: 2010-04-14 | C163: =INDEX(Table2[Client],RANDBETWEEN(1,ROWS(Table2[]))) -> Turner | D163: =INDEX(Table2[Service],RANDBETWEEN(1,ROWS(Table2[]))) -> Dokok | E163: 182
B164: 2010-01-26 | C164: =INDEX(Table2[Client],RANDBETWEEN(1,ROWS(Table2[]))) -> Roberts | D164: =INDEX(Table2[Service],RANDBETWEEN(1,ROWS(Table2[]))) -> Fadut | E164: 230
B165: 2010-08-05 | C165: =INDEX(Table2[Client],RANDBETWEEN(1,ROWS(Table2[]))) -> Miller | D165: =INDEX(Table2[Service],RANDBETWEEN(1,ROWS(Table2[]))) -> Veneg | E165: 217
B166: 2010-11-02 | C166: =INDEX(Table2[Client],RANDBETWEEN(1,ROWS(Table2[]))) -> Campbell | D166: =INDEX(Table2[Service],RANDBETWEEN(1,ROWS(Table2[]))) -> Fadut | E166: 150
B167: 2010-06-01 | C167: =INDEX(Table2[Client],RANDBETWEEN(1,ROWS(Table2[]))) -> Campbell | D167: =INDEX(Table2[Service],RANDBETWEEN(1,ROWS(Table2[]))) -> Kucec | E167: 126
B168: 2010-10-10 | C168: =INDEX(Table2[Client],RANDBETWEEN(1,ROWS(Table2[]))) -> Phillips | D168: =INDEX(Table2[Service],RANDBETWEEN(1,ROWS(Table2[]))) -> Kapan | E168: 72
B169: 2010-07-03 | C169: =INDEX(Table2[Client],RANDBETWEEN(1,ROWS(Table2[]))) -> Miller | D169: =INDEX(Table2[Service],RANDBETWEEN(1,ROWS(Table2[]))) -> Fadut | E169: 255
B170: 2010-09-14 | C170: =INDEX(Table2[Client],RANDBETWEEN(1,ROWS(Table2[]))) -> Turner | D170: =INDEX(Table2[Service],RANDBETWEEN(1,ROWS(Table2[]))) -> Pikab | E170: 131
B171: 2010-01-25 | C171: =INDEX(Table2[Client],RANDBETWEEN(1,ROWS(Table2[]))) -> Campbell | D171: =INDEX(Table2[Service],RANDBETWEEN(1,ROWS(Table2[]))) -> Kapan | E171: 272
B172: 2010-08-30 | C172: =INDEX(Table2[Client],RANDBETWEEN(1,ROWS(Table2[]))) -> Turner | D172: =INDEX(Table2[Service],RANDBETWEEN(1,ROWS(Table2[]))) -> Veneg | E172: 10
B173: 2010-07-01 | C173: =INDEX(Table2[Client],RANDBETWEEN(1,ROWS(Table2[]))) -> Phillips | D173: =INDEX(Table2[Service],RANDBETWEEN(1,ROWS(Table2[]))) -> Pikab | E173: 136
B174: 2010-12-04 | C174: =INDEX(Table2[Client],RANDBETWEEN(1,ROWS(Table2[]))) -> Miller | D174: =INDEX(Table2[Service],RANDBETWEEN(1,ROWS(Table2[]))) -> Ludin | E174: 62
B175: 2010-03-31 | C175: =INDEX(Table2[Client],RANDBETWEEN(1,ROWS(Table2[]))) -> Miller | D175: =INDEX(Table2[Service],RANDBETWEEN(1,ROWS(Table2[]))) -> Dokok | E175: 244
B176: 2010-05-10 | C176: =INDEX(Table2[Client],RANDBETWEEN(1,ROWS(Table2[]))) -> Miller | D176: =INDEX(Table2[Service],RANDBETWEEN(1,ROWS(Table2[]))) -> Dokok | E176: 229
B177: 2010-05-10 | C177: =INDEX(Table2[Client],RANDBETWEEN(1,ROWS(Table2[]))) -> Parker | D177: =INDEX(Table2[Service],RANDBETWEEN(1,ROWS(Table2[]))) -> Veneg | E177: 127
B178: 2010-03-23 | C178: =INDEX(Table2[Client],RANDBETWEEN(1,ROWS(Table2[]))) -> Parker | D178: =INDEX(Table2[Service],RANDBETWEEN(1,ROWS(Table2[]))) -> Veneg | E178: 192
B179: 2010-09-26 | C179: =INDEX(Table2[Client],RANDBETWEEN(1,ROWS(Table2[]))) -> Roberts | D179: =INDEX(Table2[Service],RANDBETWEEN(1,ROWS(Table2[]))) -> Ludin | E179: 107
B180: 2010-10-10 | C180: =INDEX(Table2[Client],RANDBETWEEN(1,ROWS(Table2[]))) -> Parker | D180: =INDEX(Table2[Service],RANDBETWEEN(1,ROWS(Table2[]))) -> Veneg | E180: 23
B181: 2010-08-17 | C181: =INDEX(Table2[Client],RANDBETWEEN(1,ROWS(Table2[]))) -> Miller | D181: =INDEX(Table2[Service],RANDBETWEEN(1,ROWS(Table2[]))) -> Dokok | E181: 71
B182: 2010-09-30 | C182: =INDEX(Table2[Client],RANDBETWEEN(1,ROWS(Table2[]))) -> Turner | D182: =INDEX(Table2[Service],RANDBETWEEN(1,ROWS(Table2[]))) -> Dokok | E182: 43
B183: 2010-07-29 | C183: =INDEX(Table2[Client],RANDBETWEEN(1,ROWS(Table2[]))) -> Perez | D183: =INDEX(Table2[Service],RANDBETWEEN(1,ROWS(Table2[]))) -> Dokok | E183: 249
B184: 2010-06-26 | C184: =INDEX(Table2[Client],RANDBETWEEN(1,ROWS(Table2[]))) -> Miller | D184: =INDEX(Table2[Service],RANDBETWEEN(1,ROWS(Table2[]))) -> Kapan | E184: 262
B185: 2010-04-23 | C185: =INDEX(Table2[Client],RANDBETWEEN(1,ROWS(Table2[]))) -> Parker | D185: =INDEX(Table2[Service],RANDBETWEEN(1,ROWS(Table2[]))) -> Ludin | E185: 212
B186: 2010-12-20 | C186: =INDEX(Table2[Client],RANDBETWEEN(1,ROWS(Table2[]))) -> Campbell | D186: =INDEX(Table2[Service],RANDBETWEEN(1,ROWS(Table2[]))) -> Fadut | E186: 17
B187: 2010-07-27 | C187: =INDEX(Table2[Client],RANDBETWEEN(1,ROWS(Table2[]))) -> Parker | D187: =INDEX(Table2[Service],RANDBETWEEN(1,ROWS(Table2[]))) -> Pikab | E187: 181
B188: 2010-04-01 | C188: =INDEX(Table2[Client],RANDBETWEEN(1,ROWS(Table2[]))) -> Miller | D188: =INDEX(Table2[Service],RANDBETWEEN(1,ROWS(Table2[]))) -> Kucec | E188: 12
B189: 2010-05-07 | C189: =INDEX(Table2[Client],RANDBETWEEN(1,ROWS(Table2[]))) -> Roberts | D189: =INDEX(Table2[Service],RANDBETWEEN(1,ROWS(Table2[]))) -> Kucec | E189: 240
B190: 2010-11-11 | C190: =INDEX(Table2[Client],RANDBETWEEN(1,ROWS(Table2[]))) -> Perez | D190: =INDEX(Table2[Service],RANDBETWEEN(1,ROWS(Table2[]))) -> Fadut | E190: 243
B191: 2010-05-18 | C191: =INDEX(Table2[Client],RANDBETWEEN(1,ROWS(Table2[]))) -> Miller | D191: =INDEX(Table2[Service],RANDBETWEEN(1,ROWS(Table2[]))) -> Ludin | E191: 126
B192: 2010-12-05 | C192: =INDEX(Table2[Client],RANDBETWEEN(1,ROWS(Table2[]))) -> Perez | D192: =INDEX(Table2[Service],RANDBETWEEN(1,ROWS(Table2[]))) -> Kucec | E192: 246
B193: 2010-10-25 | C193: =INDEX(Table2[Client],RANDBETWEEN(1,ROWS(Table2[]))) -> Campbell | D193: =INDEX(Table2[Service],RANDBETWEEN(1,ROWS(Table2[]))) -> Kapan | E193: 222
B194: 2010-09-23 | C194: =INDEX(Table2[Client],RANDBETWEEN(1,ROWS(Table2[]))) -> Campbell | D194: =INDEX(Table2[Service],RANDBETWEEN(1,ROWS(Table2[]))) -> Dokok | E194: 235
B195: 2010-01-13 | C195: =INDEX(Table2[Client],RANDBETWEEN(1,ROWS(Table2[]))) -> Parker | D195: =INDEX(Table2[Service],RANDBETWEEN(1,ROWS(Table2[]))) -> Kapan | E195: 67

Sheet PTable
B5: Service | C5: (All)
B6: PT_2
B7: Sum of Rev | C7: Date
B8: Client | C8: Jan | D8: Feb | E8: Mar | F8: Apr | G8: May | H8: Jun | I8: Jul | J8: Aug | K8: Sep | L8: Oct | M8: Nov | N8: Dec
B9: Roberts | C9: 586 | D9: 25 | E9: 444 | F9: 487 | G9: 367 | H9: 246 | I9: 0 | J9: 0 | K9: 491 | L9: 197 | M9: 37 | N9: 649
B10: Parker | C10: 500 | D10: 253 | E10: 844 | F10: 168 | G10: 304 | H10: 296 | I10: 450 | J10: 0 | K10: 361 | L10: 355 | M10: 358 | N10: 544
B11: Perez | C11: 452 | D11: 223 | E11: 488 | F11: 233 | G11: 766 | H11: 542 | I11: 246 | J11: 106 | K11: 499 | L11: 374 | M11: 341 | N11: 298
B12: Campbell | C12: 444 | D12: 583 | E12: 547 | F12: 162 | G12: 570 | H12: 0 | I12: 345 | J12: 114 | K12: 296 | L12: 758 | M12: 390 | N12: 673
B13: Phillips | C13: 67 | D13: 161 | E13: 214 | F13: 184 | G13: 0 | H13: 1079 | I13: 249 | J13: 0 | K13: 209 | L13: 0 | M13: 547 | N13: 202
B14: Turner | C14: 249 | D14: 201 | E14: 251 | F14: 243 | G14: 30 | H14: 171 | I14: 457 | J14: 0 | K14: 333 | L14: 187 | M14: 664 | N14: 145
B15: Miller | C15: 251 | D15: 544 | E15: 596 | F15: 374 | G15: 280 | H15: 460 | I15: 0 | J15: 597 | K15: 250 | L15: 426 | M15: 31 | N15: 43
B16: Grand Total | C16: 2549 | D16: 1990 | E16: 3384 | F16: 1851 | G16: 2317 | H16: 2794 | I16: 1747 | J16: 817 | K16: 2439 | L16: 2297 | M16: 2368 | N16: 2554
B26: Service | C26: (All) | I26: Service | J26: (All)
B27: PT_1 | E27: Table3 | I27: PT_3 | M27: Table4
B28: Sum of Rev | C28: Date | I28: Sum of Rev | J28: Date
B29: Client | C29: Mar | D29: Apr | E29: Diff | F29: Pct | I29: Client | J29: Mar | K29: Apr | L29: May | M29: Avg | N29: Spare
B30: Roberts | C30: 444 | D30: 487 | E30: =Get_2-Get_1 -> 43 | F30: =IFERROR(Table3[[#This Row],[Diff]]/Get_1,"") -> 0.09684684685 | I30: Roberts | J30: 444 | K30: 487 | L30: 367 | M30: =AVERAGE(INDEX(PT_3Dat,rown,)) -> 432.6666667
B31: Parker | C31: 844 | D31: 168 | E31: =Get_2-Get_1 -> -676 | F31: =IFERROR(Table3[[#This Row],[Diff]]/Get_1,"") -> -0.8009478673 | I31: Parker | J31: 844 | K31: 168 | L31: 304 | M31: =AVERAGE(INDEX(PT_3Dat,rown,)) -> 438.6666667
B32: Perez | C32: 488 | D32: 233 | E32: =Get_2-Get_1 -> -255 | F32: =IFERROR(Table3[[#This Row],[Diff]]/Get_1,"") -> -0.5225409836 | I32: Perez | J32: 488 | K32: 233 | L32: 766 | M32: =AVERAGE(INDEX(PT_3Dat,rown,)) -> 495.6666667
B33: Campbell | C33: 547 | D33: 162 | E33: =Get_2-Get_1 -> -385 | F33: =IFERROR(Table3[[#This Row],[Diff]]/Get_1,"") -> -0.7038391225 | I33: Campbell | J33: 547 | K33: 162 | L33: 570 | M33: =AVERAGE(INDEX(PT_3Dat,rown,)) -> 426.3333333
B34: Phillips | C34: 214 | D34: 184 | E34: =Get_2-Get_1 -> -30 | F34: =IFERROR(Table3[[#This Row],[Diff]]/Get_1,"") -> -0.1401869159 | I34: Phillips | J34: 214 | K34: 184 | M34: =AVERAGE(INDEX(PT_3Dat,rown,)) -> 199
B35: Turner | C35: 251 | D35: 243 | E35: =Get_2-Get_1 -> -8 | F35: =IFERROR(Table3[[#This Row],[Diff]]/Get_1,"") -> -0.03187250996 | I35: Turner | J35: 251 | K35: 243 | L35: 30 | M35: =AVERAGE(INDEX(PT_3Dat,rown,)) -> 174.6666667
B36: Miller | C36: 596 | D36: 374 | E36: =Get_2-Get_1 -> -222 | F36: =IFERROR(Table3[[#This Row],[Diff]]/Get_1,"") -> -0.3724832215 | I36: Miller | J36: 596 | K36: 374 | L36: 280 | M36: =AVERAGE(INDEX(PT_3Dat,rown,)) -> 416.6666667
B37: Grand Total | C37: 3384 | D37: 1851 | E37: =SUBTOTAL(104,Table3[Diff]) -> 43 | F37: =SUBTOTAL(104,Table3[Pct]) -> 0.09684684685 | I37: Grand Total | J37: 3384 | K37: 1851 | L37: 2317 | M37: =SUBTOTAL(101,Table4[Avg]) -> 369.0952381
